Cogmind - Beta 16.1 @@@ ROGUE MODE // 2026.02.16 @ 18:12:05 Player: queen's_gambit Result: Destroyed by H-55 Commando with Gauss Rifle Performance ------------- Evolutions (2) 1000 Regions Visited (4) 800 Robots Destroyed (13) 65 Value Destroyed (407) 407 Prototype IDs (0) 0 Alien Tech Used (0) 0 Bonus (0) 0 TOTAL SCORE: 2272 Bonus ------- None Cogmind --------- Core Integrity 0/550 Matter 300/300 Energy 100/100 System Corruption 0% Temperature Cool (9) Movement Core (200) Ox3 Location -8/Materials Parts ------- > --- POWER (1) -------- (None) > --- PROPULSION (4) --- (None) > --- UTILITY (4) ------ Medium Storage Unit Microactuators > --- WEAPON (2) ------- (None) > --- INVENTORY (10) --- Heat Sink Datajack Peak State ------------ > --- POWER ------------ (None) > --- PROPULSION ------- Aluminum Leg Aluminum Leg > --- UTILITY ---------- Improved Heat Sink Small Storage Unit Microactuators Improved Shield Generator > --- WEAPON ----------- EM Pulse Gun Grenade Launcher > --- INVENTORY -------- Heat Sink Datajack [Rating: 16] Favorites ----------- Power Ion Engine Engine Ion Engine Propulsion Aluminum Leg Treads Light Treads Leg Aluminum Leg Utility Small Storage Unit Device Heat Sink Storage Small Storage Unit Weapon EM Pulse Gun Energy Gun EM Pulse Gun Launcher Grenade Launcher Build | -11 -10 -10 -10 -8 ------- Run | Yrd Mat Min Sub Mat Slots Evolved 4 | . . . . 4 Power . | . . . . . Propulsion 2 | . . . . 2 Utility 2 | . . . . 2 Weapon . | . . . . . Parts Attached 15 | 6 1 4 . 4 Power 1 | 1 . . . . Engine 1 | 1 . . . . Core . | . . . . . Reactor . | . . . . . Propulsion 3 | 2 . . . 1 Treads 1 | . . . . 1 Leg 2 | 2 . . . . Wheel . | . . . . . Hover . | . . . . . Flight . | . . . . . Utility 6 | 1 1 1 . 3 Device 4 | . 1 1 . 2 Storage 2 | 1 . . . 1 Processor . | . . . . . Hackware . | . . . . . Protection . | . . . . . Artifact . | . . . . . Weapon 5 | 2 . 3 . . Energy Gun 3 | 2 . 1 . . Energy Cannon . | . . . . . Ballistic Gun . | . . . . . Ballistic Cannon . | . . . . . Launcher 2 | . . 2 . . Special Weapon . | . . . . . Impact Weapon . | . . . . . Slashing Weapon . | . . . . . Piercing Weapon . | . . . . . Special Melee Weapon . | . . . . . Unidentified Prototypes . | . . . . . Parts Lost 11 | . 1 3 . 7 Power 1 | . 1 . . . Propulsion 3 | . . . . 3 Utility 2 | . . . . 2 Weapon 5 | . . 3 . 2 Highest Loss Streak 7 | . 1 2 . 7 To Critical Strikes . | . . . . . Average Backups 2 | 2 2 2 2 2 Power . | 1 . . . . Propulsion . | . . . . . Utility . | . . . 1 1 Weapon 1 | . 1 1 . . Tool/Special . | . . . . . Unused Backups 2 | . 1 . . 1 Power 1 | . 1 . . . Propulsion . | . . . . . Utility . | . . . . . Weapon . | . . . . . Tool/Special 1 | . . . . 1 Average Slot Usage (%) 77 | . 94 79 85 59 Engine 4 | . 13 . . . Leg 23 | . 28 28 28 12 Device 15 | . 9 14 14 22 Storage 12 | . 14 14 14 9 Energy Gun 15 | . 28 14 14 6 Launcher 5 | . . 8 14 6 Peak Build Rating 16 | 6 7 8 8 16 Average Rating 8 | 4 6 6 8 13 On Entrance 5 | . 6 6 8 8 Avg Prop Armor Cover (%) . | . . . . . Naked Turns . | . . . . . Heaviest Build 22 | 13 14 11 11 22 Greatest Support 20 | 20 20 20 20 20 Greatest Overweight (x) 7 | 4 . . . 7 Average Overweight (x) . | . . . . . Largest Inventory Capacity 10 | 8 8 8 8 10 Average Capacity 8 | 7 8 8 8 9 Most Carried 5 | 5 4 4 2 4 Average Carried 2 | 2 2 2 2 2 Final Capacity 10 | 8 8 8 8 10 Final Carried 3 | 2 3 2 2 2 Class Distribution -------------------- 100% | Mutant Dominant Class ---------------- Mutant | -10/Materials Mutant | -10/Mines Mutant | -10/Subcaves Mutant | -8/Materials Resources | -11 -10 -10 -10 -8 ----------- Run | Yrd Mat Min Sub Mat Matter Collected 375 | 251 10 85 20 9 Remotely . | . . . . . Salvage Created 393 | . 88 158 40 107 Parts 19 | . 5 6 3 5 Haulers Intercepted . | . . . . . Recyclers Shooed 1 | . 1 . . . Parts Field Recycled . | . . . . . Retrieved Matter . | . . . . . Parts Self-Destructed 5 | . . . 5 . Prevented . | . . . . . Parts Restored . | . . . . . Kills | -11 -10 -10 -10 -8 ------- Run | Yrd Mat Min Sub Mat Combat Hostiles Destroyed 10 | . 2 5 1 2 Guns 3 | . 2 . . 1 AOE 7 | . . 5 1 1 Classes Destroyed 6 | . 4 . . 2 Builder 1 | . . . . 1 Operator 1 | . 1 . . . Watcher 1 | . 1 . . . Swarmer 1 | . 1 . . . Grunt 8 | . 1 5 1 1 Brawler 1 | . . . . 1 Best Kill Streak 4 | . 2 4 1 3 Combat Bots Only 4 | . 1 4 1 2 Max Kills in Single Turn 2 | . 1 2 1 1 Gunslinging . | . . . . . Exploded 2 | . . 2 1 1 Melee . | . . . . . Uniques/NPCs Destroyed . | . . . . . Combat | -11 -10 -10 -10 -8 -------- Run | Yrd Mat Min Sub Mat Hostile Shots Fired 157 | . 42 28 . 87 Missed 44 | . 17 9 . 18 Hits 113 | . 25 19 . 69 Projectile 113 | . 25 19 . 69 Critical Strikes 2 | . . . . 2 Damage Taken 1617 | . 229 328 . 1060 Core 695 | . 48 84 . 563 Absorbed by Shields . | . . . . . Core Remaining (%) 73 | 100 . . 47 . Volleys Fired 25 | . 9 9 2 5 Largest 2 | . 2 2 2 2 Hottest 80 | . 80 73 70 70 Shots Fired 44 | . 18 14 4 8 Gun 34 | . 18 9 2 5 Cannon . | . . . . . Launcher 10 | . . 5 2 3 Special . | . . . . . Kinetic . | . . . . . Thermal 16 | . 9 7 . . Explosive 10 | . . 5 2 3 Electromagnetic 18 | . 9 2 2 5 Robot Hit Streak 4 | . 3 4 1 4 Robot Miss Streak 2 | . 2 2 1 1 Penetration Max . | . . . . . Secondary Targets . | . . . . . Shots Hit Robots 24 | . 9 10 1 4 Core Hits 24 | . 5 10 2 7 Critical Kills . | . . . . . Critical Parts Destroyed . | . . . . . Critical Strikes . | . . . . . Melee Attacks . | . . . . . Impact . | . . . . . Slashing . | . . . . . Piercing . | . . . . . Sneak Attacks . | . . . . . Combat Hostiles . | . . . . . Follow-up Attacks . | . . . . . Damage Inflicted 866 | . 129 375 66 296 Guns 235 | . 127 83 . 25 Cannons . | . . . . . Explosions 624 | . . 292 66 266 Melee . | . . . . . Ramming 7 | . 2 . . 5 Kinetic . | . . . . . Thermal 191 | . 44 147 . . Explosive 533 | . . 201 66 266 Electromagnetic 135 | . 83 27 . 25 Impact . | . . . . . Slashing . | . . . . . Piercing . | . . . . . Highest Corruption . | . . . . . Average Corruption . | . . . . . Corruption Purged . | . . . . . Corruption Blocked . | . . . . . Overload Shots . | . . . . . Overflow Damage 2 | . . 2 . . Projectiles . | . . . . . Explosions 2 | . . 2 . . Melee . | . . . . . Knockbacks . | . . . . . Impact . | . . . . . Kinetic . | . . . . . Secondary . | . . . . . Self-Inflicted Damage 54 | . . 54 . . Shots 2 | . . 2 . . Rammed 5 | . . . . 5 Targets Rammed 7 | . 1 . . 6 Kicked 2 | . 1 . . 1 Crushed . | . . . . . Highest Temperature 7 | . 2 7 . . Average Temperature 3 | . 2 7 . . Received Heat Transfer 597 | . 60 159 . 378 Siege Activations . | . . . . . Martial Activations . | . . . . . Shielding Activations . | . . . . . Robots Disrupted . | . . . . . Combat Hostiles . | . . . . . Robots Corrupted . | . . . . . Combat Hostiles . | . . . . . Parts Fried . | . . . . . Impact Corruptions . | . . . . . Robots Melted . | . . . . . Combat Hostiles . | . . . . . Parts Melted . | . . . . . Heat Transferred 325 | . 100 225 . . Parts Sabotaged . | . . . . . Parts Stolen . | . . . . . Parts Stripped . | . . . . . Power Chain Reactions 1 | . . 1 . . Alert | -11 -10 -10 -10 -8 ------- Run | Yrd Mat Min Sub Mat Maximum Alert Level . | . . . . . Low Security (%) 100 | 100 100 100 . 100 Level 1 . | . . . . . Level 2 . | . . . . . Level 3 . | . . . . . Level 4 . | . . . . . Level 5 . | . . . . . High Security . | . . . . . Max Security . | . . . . . Peak Influence 144 | . 35 144 . 70 Initial 30 | . . 5 . 30 Average 24 | . 11 58 . 11 Influence Increases 381 | . 77 214 20 70 Destroy 0b10 Robot/C 200 | . 40 100 20 40 Destroy 0b10 Robot/NC 15 | . 10 . . 5 Destroy Leader 52 | . 12 30 . 10 Destroy Structure 54 | . . 39 . 15 Lose Combat Pursuer 60 | . 15 45 . . Influence Decreases 381 | . 62 105 85 129 Entered New Map 104 | . . 10 65 29 Time Decay 192 | . 52 70 20 50 Lost Part 85 | . 10 25 . 50 Squads Dispatched 3 | . 1 . . 2 Investigation . | . . . . . Extermination . | . . . . . Reinforcement 3 | . 1 . . 2 Assault . | . . . . . Garrison . | . . . . . Intercept . | . . . . . Searches Triggered . | . . . . . Construction Impeded 1 | . . . . 1 Haulers Reinforced . | . . . . . Active Scanning Responses . | . . . . . Cargo Convoy Interrupts . | . . . . . Stealth | -11 -10 -10 -10 -8 --------- Run | Yrd Mat Min Sub Mat Distress Signals 1 | . . . . 1 Communications Jammed . | . . . . . Distress Signals . | . . . . . Times Spotted 33 | . 9 8 3 13 Peak Tracking Total 8 | . 4 3 2 8 Tactical Retreats 3 | . 1 2 . . Traps | -11 -10 -10 -10 -8 ------- Run | Yrd Mat Min Sub Mat Traps Triggered . | . . . . . Indirectly . | . . . . . Trap Hack Attempts . | . . . . . Triggered . | . . . . . Disarmed . | . . . . . Reprogrammed . | . . . . . Reused . | . . . . . Traps Extracted . | . . . . . Installed . | . . . . . Triggered . | . . . . . Machines | -11 -10 -10 -10 -8 ---------- Run | Yrd Mat Min Sub Mat Machines Disabled 1 | . 1 . . . Max in Single Turn 1 | . 1 . . . Machines Repaired . | . . . . . Machines Dismantled . | . . . . . Machines Sabotaged . | . . . . . Overloaded Fab Kills . | . . . . . Hacking | -11 -10 -10 -10 -8 --------- Run | Yrd Mat Min Sub Mat Machines Accessed 2 | . 1 . . 1 Terminals 1 | . . . . 1 Fabricators . | . . . . . Repair Stations . | . . . . . Recycling Units 1 | . 1 . . . Scanalyzers . | . . . . . Garrison Access . | . . . . . Total Hacks 6 | . 4 . . 2 Successful 6 | . 4 . . 2 Failed . | . . . . . Catastrophic . | . . . . . Database Lockouts . | . . . . . Manual . | . . . . . Terminals 2 | . . . . 2 Fabricators . | . . . . . Repair Stations . | . . . . . Recycling Units 4 | . 4 . . . Scanalyzers . | . . . . . Garrison Access . | . . . . . Terminal Hacks 2 | . . . . 2 Alert Level 1 | . . . . 1 Zone Layout 1 | . . . . 1 Fabricator Hacks . | . . . . . Repair Station Hacks . | . . . . . Recycling Unit Hacks 4 | . 4 . . . Recycle Component 1 | . 1 . . . Process 2 | . 2 . . . Retrieve Matter 1 | . 1 . . . Scanalyzer . | . . . . . Garrison Access Hacks . | . . . . . Unauthorized Hacks . | . . . . . Terminals . | . . . . . Fabricators . | . . . . . Repair Stations . | . . . . . Recycling Units . | . . . . . Scanalyzers . | . . . . . Garrison Access . | . . . . . Data Cores Recovered . | . . . . . Used . | . . . . . Hacking Detections 1 | . . . . 1 Full Trace Events . | . . . . . Feedback Events . | . . . . . Feedback Blocked . | . . . . . Robot Schematics Acquired . | . . . . . Robots Built . | . . . . . Authchips . | . . . . . Time . | . . . . . Total Robot Build Rating . | . . . . . Part Schematics Acquired . | . . . . . Parts Built . | . . . . . Authchips . | . . . . . Time . | . . . . . Total Part Build Rating . | . . . . . Part Studies Acquired . | . . . . . Parts Repaired . | . . . . . Time . | . . . . . Parts Recycled 1 | . 1 . . . Recycled Matter 20 | . 20 . . . Retrieved Matter 20 | . 20 . . . Retrieved Components . | . . . . . Parts Scanalyzed . | . . . . . Part Schematics Acquired . | . . . . . Parts Damaged . | . . . . . Bothacking | -11 -10 -10 -10 -8 ------------ Run | Yrd Mat Min Sub Mat Used RIF Installer . | . . . . . Robots Hacked . | . . . . . Non-combat . | . . . . . Combat . | . . . . . Robot Hacks Applied . | . . . . . Relay Couplers Released . | . . . . . Fabnet Peak Effective % . | . . . . . Robots Rewired . | . . . . . Allies Hacked . | . . . . . Hacks Repelled . | . . . . . Allies | -11 -10 -10 -10 -8 -------- Run | Yrd Mat Min Sub Mat Total Allies . | . . . . . Largest Group . | . . . . . Highest-Rated Group . | . . . . . Highest-Rated Ally . | . . . . . Total Orders . | . . . . . Ally Attacks . | . . . . . Total Damage . | . . . . . Kills . | . . . . . Allies Corrupted . | . . . . . Allies Melted . | . . . . . Intel | -11 -10 -10 -10 -8 ------- Run | Yrd Mat Min Sub Mat Active Infowar (turns) . | . . . . . Robot Analysis Total . | . . . . . Derelict Logs Recovered 1 | . . . 1 . Drone Launches . | . . . . . Drone Recoveries . | . . . . . Exploration | -11 -10 -10 -10 -8 ------------- Run | Yrd Mat Min Sub Mat Turns Passed 743 | 74 204 214 41 210 Spaces Moved 490 | 51 144 154 30 111 Core 29 | 18 . . . 11 Treads 10 | . . . . 10 Legs 451 | 33 144 154 30 90 Wheels . | . . . . . Hover . | . . . . . Flight . | . . . . . Fastest Speed 50 | 50 120 120 120 120 Average Speed 127 | 118 120 120 120 154 Slowest Speed 400 | 250 120 120 120 400 Overloaded Moves . | . . . . . Propulsion Burnouts . | . . . . . Robots Hopped . | . . . . . Potential Cave-ins . | . . . . . Cave-ins Triggered . | . . . . . Exploration Rate (%) 19 | 4 34 41 4 16 Regions Visited 4 Branch Regions 2 Pre-discovered Areas . | . . . . . Known Exits Taken . | . . . . . Unknown Exits Taken 4 | 1 1 1 1 . Scrap Searched . | . . . . . Spaces Dug . | . . . . . Terrain Destroyed 101 | . . 64 19 18 Melee . | . . . . . Projectile . | . . . . . AOE 101 | . . 64 19 18 Terrain Rammed . | . . . . . Walls Destroyed . | . . . . . Machines Disabled . | . . . . . Actions | -11 -10 -10 -10 -8 --------- Run | Yrd Mat Min Sub Mat Total 559 | 64 157 169 31 138 Wait 6 | . . . . 6 Move 486 | 50 143 153 29 111 Hop . | . . . . . Pick Up 17 | 8 3 2 . 4 Fast Attach . | . . . . . Attach 15 | 6 1 4 . 4 Detach 2 | . . 1 . 1 Swap . | . . . . . Drop 1 | . . . . 1 Fire 25 | . 9 9 2 5 Melee . | . . . . . Ram . | . . . . . Kick 2 | . 1 . . 1 Crush 5 | . . . . 5 Escape Stasis . | . . . . . Rewire . | . . . . . Trap . | . . . . . Miscellaneous . | . . . . . Route ------- -11/Scrapyard -10/Materials -10/Mines -10/Subcaves (discovered 2 exits: *Mat / Rec) -8/Materials History --------- Turn | Location | Event 18 | -11/Scrapyard | Discovered new exit (range 14) 75 | -11/Scrapyard | Entered Materials 247 | -10/Materials | Discovered new exit (range 16) 279 | -10/Materials | Entered Mines 311 | -10/Mines | Build established: Mutant 350 | -10/Mines | Received a Rocket Launcher from a helpful Derelict 441 | -10/Mines | Core integrity fell below 50% 481 | -10/Mines | Discovered new exit (range 10) 493 | -10/Mines | Entered Subcaves 494 | -10/Subcaves | Approached by a straggling Scientist 505 | -10/Subcaves | Identified exit to Recycling 526 | -10/Subcaves | Discovered new exit (range 7) 534 | -10/Subcaves | Entered Materials 534 | -8/Materials | Evolved 4 slots: Propulsion x2, Utility x2 725 | -8/Materials | Core integrity fell below 50% 739 | -8/Materials | Core integrity fell below 20% 744 | -8/Materials | Destroyed by H-55 Commando with Gauss Rifle Last Messages --------------- recycling unit. 00733_ U-05 Engineer lays Concrete. 00734_ Acquired 3 matter. 00734_ U-05 Engineer lays Concrete. 00735_ K-01 Serf collects debris. 00735_ U-05 Engineer lays Concrete. 00736_ R-06 Scavenger inserts Wheel into recycling unit. 00738_ Penetrated by Slug. 00738_ Critical hit (Burn: +37). 00739_ K-01 Serf collects debris. 00739_ R-06 Scavenger inserts Terrain Scan Processor into recycling unit. 00740_ M-13 Machinist repairs G-47 Trooper. 00741_ Slug penetrates Recycling Unit. 00742_ K-01 Serf cleans the Repair Station. 00742_ M-13 Machinist repairs G-47 Trooper Aluminum Leg. 00743_ M-13 Machinist destroyed. 00744_ Penetrated by Slug. Map ----- +----------------------------------------------------+ | ?????????????????????????????????????????????????? | | ?????????????????????????????????????????????????? | | ?????????????????????????????????????????????????? | | ?????????????????????????????????????????????????? | | ?????????????????????????????????????????????????? | | ?????????????????????????????????????????????????? | | ?????????????????????????????????????????????????? | | ?????????????????????????????????????????????????? | | ?????????????????????????????????????????????????? | | ?????????????????????????????????????????????????? | | ??????????????????????? ?????????????????????????? | | ?????????????????????# ?????????????????????????? | | ?????????????????????# ?????????????????????????? | | ?????????????????????# ???###??????????????????? | | ?????????????????????# ??? ??????????????????? | | ?????????????????????# ??? ??????????????????? | | ?????????????????????# ??? ??????????????????? | | ?????????????????????# ??? ??????????????????? | | ?????????????????????# #?? ?????#????????????? | | ?????????????????????# #?? ???? #????????????? | | ?????????????????????# ####+##### #????????????? | | ??????????????????#### ###+?????????? | | ??????????????????#""" ?????????? | | ??????????????????#"Y !!/ ! ????????? | | ??????????????????#"""r !// ?????????? | | ?????????????????????# !@/ !!!#????????????????? | | ?????????????????????# !!!#????????????????? | | ?????????????????????# !! #????????????????? | | ?????????????????????# h ##########???????? | | ????????????????####?# % k # #???????? | | ????????????????# #gg " " # """ #???????? | | ?????????######## ####g* "R" # """ #???????? | | ??????? g """ # """ #??###### | | ??????? % + ! #?##!!!!# | | ??????? % # """ #?#! ! | | ???????? ###### #+######### """ #?# | | ?????????????????# #???# """ ### # | | ?????????????????## #???# + # | | ??????????????????# #???############## | | ??????????????????# #????????????????# # | | ??????????????????# #????????????????# # | | ??????????????????# #????????????????# # | | ??????????????????# #????????????????# # | | ??????????????????# #????????????????# # | | ??????????????????###########?????????????#### | | ????????????????????????????????????????# | | ????????????????????????????????????????# #### | | ?????????????????????????????????????????????##### | | ?????????????????????????????????????????????????# | | ?????????????????????????????????????????????????# | +----------------------------------------------------+ Best States ------------- Heat Dissipation 45 Energy Generation 10 Energy Capacity 250 Matter Stores 300 Matter Capacity 300 Sight Range 16 Terrain Scan Density 10 Melee Speed Boost 20 Evasion (%) 55 Recoil Reduction 1 Item Schematics ----------------- None Robot Schematics ------------------ None Fabricated ------------ Nothing Repaired ---------- Nothing Studied --------- None Alien Tech Used ----------------- None Achievements -------------- There's More Where That Came From Challenges ------------ None Game ------ Seed PiercingRiotLance Manual? 0 Play Time 00:15:36 Cumulative 17.8 hours Start 2026.02.16 @ 17:52:20 End 2026.02.16 @ 18:12:05 Sessions 1 Manual Loads 0 Difficulty Rogue Special Mode None Game No. 26 Rogue 26 Adventurer 0 Explorer 0 Win Type - Total 0 Types 0/0/0/0/0/0/0/0/0/0 Lore% 2 Gallery% 13 Achievement% 7 Wizard Run 0 Options --------- Layout 1 ASCII 0 Keyboard 0 Movement Vi Keybinds 0 Fullscreen 1 Font 24/Smallcaps Map View 50x35 Zoom Use 0% Tactical HUD 1 Map Filters NONE Filters NONE Steam 1 RUN: 259482e1-1acd-41a8-b760-6cb77f0515ce